[Event "Titled Tuesday Blitz October 26 2021"]
[White "Timofeev, Artyom"]
[Black "Zheng, Andrew"]
[WhiteFideId "4140419"]
[BlackFideId "2076810"]
[WhiteElo "2591"]
[BlackElo "2175"]
[Result "1-0"]
[Round "05"]
[TimeControl "180+1"]
[Date "2021.10.26"]
[WhiteClock "0:00:38"]
[BlackClock "0:00:03"]

1. c4 {[%clk 0:03:00]}  Nf6 {[%clk 0:02:59]} 2. Nc3 {[%clk 0:03:00]}  e6 {[%clk 0:02:57]} 3. Nf3 {[%clk 0:02:56]}  d5 {[%clk 0:02:55]} 4. e3 {[%clk 0:02:57]}  Be7 {[%clk 0:02:54]} 5. b3 {[%clk 0:02:54]}  O-O {[%clk 0:02:54]} 6. Bb2 {[%clk 0:02:54]}  b6 {[%clk 0:02:50]} 7. Be2 {[%clk 0:02:52]}  Bb7 {[%clk 0:02:50]} 8. O-O {[%clk 0:02:52]}  c5 {[%clk 0:02:48]} 9. d3 {[%clk 0:02:45]}  Nc6 {[%clk 0:02:43]} 10. cxd5 {[%clk 0:02:43]}  exd5 {[%clk 0:02:42]} 11. d4 {[%clk 0:02:41]}  Rc8 {[%clk 0:02:29]} 12. Rc1 {[%clk 0:02:34]}  Qd7 {[%clk 0:02:18]} 13. Ne5 {[%clk 0:02:29]}  Qe6 {[%clk 0:02:17]} 14. Nxc6 {[%clk 0:02:25]}  Bxc6 {[%clk 0:02:08]} 15. Nb5 {[%clk 0:02:19]}  Qd7 {[%clk 0:01:45]} 16. a4 {[%clk 0:02:17]}  Rfd8 {[%clk 0:01:42]} 17. dxc5 {[%clk 0:02:15]}  bxc5 {[%clk 0:01:43]} 18. Bxf6 {[%clk 0:02:14]}  gxf6 {[%clk 0:01:37]} 19. Bd3 {[%clk 0:02:06]}  Bxb5 {[%clk 0:01:10]} 20. axb5 {[%clk 0:02:03]}  c4 {[%clk 0:01:05]} 21. Bb1 {[%clk 0:02:02]}  Qxb5 {[%clk 0:00:33]} 22. Qg4+ {[%clk 0:01:56]}  Kf8 {[%clk 0:00:27]} 23. Bxh7 {[%clk 0:01:55]}  Bd6 {[%clk 0:00:25]} 24. bxc4 {[%clk 0:01:50]}  dxc4 {[%clk 0:00:25]} 25. g3 {[%clk 0:01:46]}  c3 {[%clk 0:00:21]} 26. Rfd1 {[%clk 0:01:44]}  Ke7 {[%clk 0:00:17]} 27. Rc2 {[%clk 0:01:30]}  Be5 {[%clk 0:00:12]} 28. Rdc1 {[%clk 0:01:28]}  Rc7 {[%clk 0:00:12]} 29. h4 {[%clk 0:01:21]}  Rd2 {[%clk 0:00:09]} 30. h5 {[%clk 0:01:18]}  Rxc2 {[%clk 0:00:09]} 31. Rxc2 {[%clk 0:01:17]}  Rd7 {[%clk 0:00:06]} 32. Be4 {[%clk 0:01:09]}  Rd2 {[%clk 0:00:06]} 33. Kg2 {[%clk 0:01:03]}  Rxc2 {[%clk 0:00:06]} 34. Bxc2 {[%clk 0:01:03]}  Qb2 {[%clk 0:00:07]} 35. Qe4 {[%clk 0:01:03]}  Kf8 {[%clk 0:00:06]} 36. h6 {[%clk 0:01:03]}  f5 {[%clk 0:00:04]} 37. Qxf5 {[%clk 0:01:01]}  Bh8 {[%clk 0:00:04]} 38. Qc8+ {[%clk 0:01:00]}  Ke7 {[%clk 0:00:04]} 39. Qxh8 {[%clk 0:00:58]}  Qxc2 {[%clk 0:00:05]} 40. Qe5+ {[%clk 0:00:59]}  Kd7 {[%clk 0:00:05]} 41. Qd5+ {[%clk 0:00:57]}  Ke7 {[%clk 0:00:04]} 42. Qc5+ {[%clk 0:00:55]}  Kf6 {[%clk 0:00:03]} 43. Qd6+ {[%clk 0:00:54]}  Kg5 {[%clk 0:00:03]} 44. h7 {[%clk 0:00:42]}  Qxh7 {[%clk 0:00:03]} 45. Qe5+ {[%clk 0:00:42]}  Kg4 {[%clk 0:00:03]} 46. f3# {[%clk 0:00:38]} 1-0


[Site "https://www.chess.com"]

[Event "Titled Tuesday Blitz October 26 2021"]
[White "Urazayev, Arystanbek"]
[Black "Anuj Shrivatri"]
[WhiteFideId "13709810"]
[BlackFideId "35070924"]
[WhiteElo "2321"]
[BlackElo "2038"]
[Result "0-1"]
[Round "05"]
[TimeControl "180+1"]
[Date "2021.10.26"]
[WhiteClock "0:00:17"]
[BlackClock "0:00:09"]

1. e4 {[%clk 0:03:00]}  e5 {[%clk 0:02:59]} 2. Nf3 {[%clk 0:03:00]}  Nc6 {[%clk 0:02:58]} 3. Bb5 {[%clk 0:03:01]}  a6 {[%clk 0:02:55]} 4. Ba4 {[%clk 0:03:01]}  Nf6 {[%clk 0:02:55]} 5. O-O {[%clk 0:03:01]}  Be7 {[%clk 0:02:56]} 6. d3 {[%clk 0:03:01]}  b5 {[%clk 0:02:56]} 7. Bb3 {[%clk 0:03:01]}  d6 {[%clk 0:02:56]} 8. c3 {[%clk 0:03:01]}  Na5 {[%clk 0:02:52]} 9. Bc2 {[%clk 0:03:01]}  c5 {[%clk 0:02:53]} 10. Nbd2 {[%clk 0:03:00]}  O-O {[%clk 0:02:53]} 11. Re1 {[%clk 0:03:00]}  Re8 {[%clk 0:02:53]} 12. Nf1 {[%clk 0:03:00]}  Bf8 {[%clk 0:02:50]} 13. Ng3 {[%clk 0:03:00]}  Nc6 {[%clk 0:02:50]} 14. d4 {[%clk 0:03:00]}  cxd4 {[%clk 0:02:49]} 15. cxd4 {[%clk 0:03:01]}  Bg4 {[%clk 0:02:50]} 16. dxe5 {[%clk 0:02:52]}  Nxe5 {[%clk 0:02:49]} 17. Bf4 {[%clk 0:02:46]}  Rc8 {[%clk 0:02:34]} 18. Bb3 {[%clk 0:02:46]}  Qb6 {[%clk 0:02:18]} 19. Be3 {[%clk 0:02:13]}  Qb7 {[%clk 0:02:14]} 20. Bg5 {[%clk 0:02:09]}  Nh5 {[%clk 0:01:46]} 21. Bd5 {[%clk 0:01:59]}  Qc7 {[%clk 0:01:37]} 22. Qb3 {[%clk 0:01:59]}  h6 {[%clk 0:00:59]} 23. Nxe5 {[%clk 0:01:44]}  dxe5 {[%clk 0:00:58]} 24. Rac1 {[%clk 0:01:36]}  Qd7 {[%clk 0:00:57]} 25. Be3 {[%clk 0:01:36]}  Nf4 {[%clk 0:00:57]} 26. Bxf4 {[%clk 0:00:59]}  exf4 {[%clk 0:00:56]} 27. Nf1 {[%clk 0:00:58]}  a5 {[%clk 0:00:44]} 28. Nd2 {[%clk 0:00:47]}  Bb4 {[%clk 0:00:39]} 29. Qd3 {[%clk 0:00:47]}  Rxc1 {[%clk 0:00:22]} 30. Rxc1 {[%clk 0:00:47]}  Rd8 {[%clk 0:00:23]} 31. a3 {[%clk 0:00:42]}  Bxd2 {[%clk 0:00:16]} 32. Qxd2 {[%clk 0:00:42]}  Be6 {[%clk 0:00:17]} 33. Rd1 {[%clk 0:00:32]}  Bxd5 {[%clk 0:00:17]} 34. exd5 {[%clk 0:00:33]}  Qc8 {[%clk 0:00:17]} 35. Qxf4 {[%clk 0:00:27]}  Qc2 {[%clk 0:00:17]} 36. Qd2 {[%clk 0:00:26]}  Qxd2 {[%clk 0:00:17]} 37. Rxd2 {[%clk 0:00:27]}  Kf8 {[%clk 0:00:17]} 38. f3 {[%clk 0:00:25]}  Ke7 {[%clk 0:00:18]} 39. Kf2 {[%clk 0:00:26]}  Kd6 {[%clk 0:00:18]} 40. Ke3 {[%clk 0:00:25]}  Re8+ {[%clk 0:00:19]} 41. Kd4 {[%clk 0:00:25]}  a4 {[%clk 0:00:18]} 42. Rc2 {[%clk 0:00:24]}  Re1 {[%clk 0:00:16]} 43. Rc6+ {[%clk 0:00:24]}  Kd7 {[%clk 0:00:17]} 44. Rb6 {[%clk 0:00:24]}  Re2 {[%clk 0:00:16]} 45. Rxb5 {[%clk 0:00:22]}  Rxg2 {[%clk 0:00:16]} 46. Rb7+ {[%clk 0:00:21]}  Kd6 {[%clk 0:00:15]} 47. Rxf7 {[%clk 0:00:18]}  Rd2+ {[%clk 0:00:11]} 48. Kc3 {[%clk 0:00:16]}  Rxh2 {[%clk 0:00:11]} 49. Rxg7 {[%clk 0:00:17]}  Kxd5 {[%clk 0:00:08]} 50. Rg4 {[%clk 0:00:16]}  Rh3 {[%clk 0:00:06]} 51. Rxa4 {[%clk 0:00:16]}  Rxf3+ {[%clk 0:00:07]} 52. Kb4 {[%clk 0:00:16]}  Rf4+ {[%clk 0:00:06]} 53. Kb5 {[%clk 0:00:17]}  Rxa4 {[%clk 0:00:06]} 54. Kxa4 {[%clk 0:00:17]}  h5 {[%clk 0:00:07]} 55. Kb5 {[%clk 0:00:11]}  h4 {[%clk 0:00:07]} 56. a4 {[%clk 0:00:12]}  h3 {[%clk 0:00:07]} 57. b4 {[%clk 0:00:13]}  h2 {[%clk 0:00:07]} 58. Kb6 {[%clk 0:00:14]}  h1=Q {[%clk 0:00:07]} 59. b5 {[%clk 0:00:14]}  Qg1+ {[%clk 0:00:06]} 60. Kb7 {[%clk 0:00:15]}  Kc5 {[%clk 0:00:06]} 61. b6 {[%clk 0:00:13]}  Qg6 {[%clk 0:00:04]} 62. a5 {[%clk 0:00:13]}  Kb5 {[%clk 0:00:04]} 63. Kc7 {[%clk 0:00:13]}  Qf7+ {[%clk 0:00:02]} 64. Kc8 {[%clk 0:00:12]}  Ka6 {[%clk 0:00:02]} 65. Kd8 {[%clk 0:00:12]}  Qb7 {[%clk 0:00:03]} 66. Ke8 {[%clk 0:00:12]}  Kxa5 {[%clk 0:00:04]} 67. Kd8 {[%clk 0:00:12]}  Kxb6 {[%clk 0:00:05]} 68. Ke8 {[%clk 0:00:13]}  Kc6 {[%clk 0:00:06]} 69. Kf8 {[%clk 0:00:14]}  Kd6 {[%clk 0:00:07]} 70. Kg8 {[%clk 0:00:15]}  Ke6 {[%clk 0:00:08]} 71. Kf8 {[%clk 0:00:16]}  Kf6 {[%clk 0:00:09]} 72. Ke8 {[%clk 0:00:17]}  Qe7# {[%clk 0:00:09]} 0-1


[Site "https://www.chess.com"]

[Event "Titled Tuesday Blitz October 26 2021"]
[White "Andreikin, Dmitry"]
[Black "Sorokin, Aleksey"]
[WhiteFideId "4158814"]
[BlackFideId "24176460"]
[WhiteElo "2736"]
[BlackElo "2476"]
[Result "1-0"]
[Round "06"]
[TimeControl "180+1"]
[Date "2021.10.26"]
[WhiteClock "0:00:06"]
[BlackClock "0:00:05"]

1. e4 {[%clk 0:03:00]}  c5 {[%clk 0:02:59]} 2. Nf3 {[%clk 0:02:58]}  d6 {[%clk 0:02:59]} 3. d4 {[%clk 0:02:57]}  cxd4 {[%clk 0:03:00]} 4. Nxd4 {[%clk 0:02:57]}  Nf6 {[%clk 0:03:00]} 5. Nc3 {[%clk 0:02:58]}  a6 {[%clk 0:03:00]} 6. Be3 {[%clk 0:02:57]}  e5 {[%clk 0:03:00]} 7. Nb3 {[%clk 0:02:56]}  Be7 {[%clk 0:02:58]} 8. Qf3 {[%clk 0:02:54]}  b5 {[%clk 0:02:54]} 9. Be2 {[%clk 0:02:46]}  b4 {[%clk 0:02:49]} 10. Nd5 {[%clk 0:02:44]}  Nxd5 {[%clk 0:02:47]} 11. exd5 {[%clk 0:02:45]}  f5 {[%clk 0:02:43]} 12. O-O-O {[%clk 0:02:36]}  O-O {[%clk 0:02:28]} 13. g4 {[%clk 0:02:30]}  e4 {[%clk 0:02:23]} 14. Qh3 {[%clk 0:02:22]}  f4 {[%clk 0:02:23]} 15. Bd4 {[%clk 0:02:22]}  f3 {[%clk 0:02:16]} 16. Bc4 {[%clk 0:02:18]}  Nd7 {[%clk 0:02:01]} 17. Kb1 {[%clk 0:02:06]}  Nb6 {[%clk 0:01:55]} 18. Na5 {[%clk 0:01:56]}  Nxc4 {[%clk 0:01:44]} 19. Nxc4 {[%clk 0:01:57]}  Rb8 {[%clk 0:01:35]} 20. Rhe1 {[%clk 0:01:51]}  Rb5 {[%clk 0:01:26]} 21. Rxe4 {[%clk 0:01:37]}  Rxd5 {[%clk 0:01:26]} 22. Ne3 {[%clk 0:01:35]}  Rg5 {[%clk 0:01:26]} 23. Qg3 {[%clk 0:01:29]}  d5 {[%clk 0:01:17]} 24. Re5 {[%clk 0:01:10]}  Rf7 {[%clk 0:00:36]} 25. b3 {[%clk 0:01:01]}  Bd6 {[%clk 0:00:33]} 26. Re8+ {[%clk 0:00:48]}  Qxe8 {[%clk 0:00:33]} 27. Qxd6 {[%clk 0:00:49]}  Bxg4 {[%clk 0:00:33]} 28. Rg1 {[%clk 0:00:34]}  Rg6 {[%clk 0:00:32]} 29. Qxb4 {[%clk 0:00:34]}  Bf5 {[%clk 0:00:30]} 30. Re1 {[%clk 0:00:32]}  Be4 {[%clk 0:00:29]} 31. Nxd5 {[%clk 0:00:30]}  h6 {[%clk 0:00:24]} 32. Bxg7 {[%clk 0:00:20]}  Re6 {[%clk 0:00:15]} 33. Nf6+ {[%clk 0:00:07]}  Rfxf6 {[%clk 0:00:11]} 34. Bxf6 {[%clk 0:00:07]}  Bxc2+ {[%clk 0:00:11]} 35. Kxc2 {[%clk 0:00:08]}  Rxe1 {[%clk 0:00:11]} 36. Qg4+ {[%clk 0:00:07]}  Kf7 {[%clk 0:00:10]} 37. Qg7+ {[%clk 0:00:08]}  Ke6 {[%clk 0:00:10]} 38. Bc3 {[%clk 0:00:08]}  Re2+ {[%clk 0:00:10]} 39. Kc1 {[%clk 0:00:09]}  Qc6 {[%clk 0:00:07]} 40. Qxh6+ {[%clk 0:00:08]}  Kd7 {[%clk 0:00:07]} 41. Qg7+ {[%clk 0:00:06]}  Kc8 {[%clk 0:00:08]} 42. Kd1 {[%clk 0:00:05]}  Qd5+ {[%clk 0:00:07]} 43. Bd4 {[%clk 0:00:05]}  Re4 {[%clk 0:00:07]} 44. Qf8+ {[%clk 0:00:05]}  Kd7 {[%clk 0:00:07]} 45. Qg7+ {[%clk 0:00:05]}  Kc6 {[%clk 0:00:07]} 46. Qh6+ {[%clk 0:00:04]}  Qd6 {[%clk 0:00:05]} 47. Qxd6+ {[%clk 0:00:03]}  Kxd6 {[%clk 0:00:05]} 48. Be3 {[%clk 0:00:04]}  Kd5 {[%clk 0:00:05]} 49. Kd2 {[%clk 0:00:04]}  Rh4 {[%clk 0:00:05]} 50. Bg5 {[%clk 0:00:04]}  Rg4 {[%clk 0:00:03]} 51. h4 {[%clk 0:00:03]}  Ke4 {[%clk 0:00:02]} 52. a4 {[%clk 0:00:03]}  Rg2 {[%clk 0:00:02]} 53. Be3 {[%clk 0:00:03]}  Rh2 {[%clk 0:00:02]} 54. b4 {[%clk 0:00:04]}  Rxh4 {[%clk 0:00:03]} 55. b5 {[%clk 0:00:04]}  axb5 {[%clk 0:00:03]} 56. axb5 {[%clk 0:00:05]}  Rh5 {[%clk 0:00:03]} 57. b6 {[%clk 0:00:05]}  Rb5 {[%clk 0:00:04]} 58. Kc3 {[%clk 0:00:05]}  Rb1 {[%clk 0:00:04]} 59. Kc4 {[%clk 0:00:05]}  Rb2 {[%clk 0:00:03]} 60. Kc5 {[%clk 0:00:05]}  Rc2+ {[%clk 0:00:04]} 61. Kd6 {[%clk 0:00:05]}  Rb2 {[%clk 0:00:02]} 62. Kc6 {[%clk 0:00:06]}  Rc2+ {[%clk 0:00:03]} 63. Bc5 {[%clk 0:00:06]}  Rb2 {[%clk 0:00:01]} 64. b7 {[%clk 0:00:06]}  Kd3 {[%clk 0:00:02]} 65. Ba7 {[%clk 0:00:06]}  Ke2 {[%clk 0:00:02]} 66. Kc7 {[%clk 0:00:05]}  Rc2+ {[%clk 0:00:03]} 67. Kb8 {[%clk 0:00:05]}  Rb2 {[%clk 0:00:04]} 68. Ka8 {[%clk 0:00:05]}  Kf1 {[%clk 0:00:04]} 69. b8=Q {[%clk 0:00:05]}  Rxf2 {[%clk 0:00:04]} 70. Bxf2 {[%clk 0:00:04]}  Kxf2 {[%clk 0:00:05]} 71. Qf4 {[%clk 0:00:05]}  Kg2 {[%clk 0:00:05]} 72. Qg4+ {[%clk 0:00:05]}  Kf2 {[%clk 0:00:06]} 73. Kb7 {[%clk 0:00:05]}  Ke3 {[%clk 0:00:06]} 74. Qg1+ {[%clk 0:00:05]}  Ke2 {[%clk 0:00:05]} 75. Qg4 {[%clk 0:00:06]}  Ke3 {[%clk 0:00:06]} 76. Qg3 {[%clk 0:00:06]}  Ke2 {[%clk 0:00:06]} 77. Qe5+ {[%clk 0:00:07]}  Kf1 {[%clk 0:00:07]} 78. Qb5+ {[%clk 0:00:06]}  Kg1 {[%clk 0:00:06]} 79. Qb1+ {[%clk 0:00:06]}  Kh2 {[%clk 0:00:05]} 80. Qh7+ {[%clk 0:00:06]}  Kg1 {[%clk 0:00:05]} 81. Qg6+ {[%clk 0:00:06]}  Kf1 {[%clk 0:00:06]} 82. Qd3+ {[%clk 0:00:06]}  Kg2 {[%clk 0:00:06]} 83. Qe4 {[%clk 0:00:06]}  Kg3 {[%clk 0:00:06]} 84. Kc6 {[%clk 0:00:06]}  f2 {[%clk 0:00:05]} 85. Qh1 {[%clk 0:00:06]} 1-0


[Site "https://www.chess.com"]

[Event "Titled Tuesday Blitz October 26 2021"]
[White "Anuj Shrivatri"]
[Black "Pultinevicius, Paulius"]
[WhiteFideId "35070924"]
[BlackFideId "12809390"]
[WhiteElo "2038"]
[BlackElo "2467"]
[Result "0-1"]
[Round "06"]
[TimeControl "180+1"]
[Date "2021.10.26"]
[WhiteClock "0:00:04"]
[BlackClock "0:00:08"]

1. e4 {[%clk 0:03:00]}  c6 {[%clk 0:02:59]} 2. d4 {[%clk 0:02:57]}  d5 {[%clk 0:02:59]} 3. e5 {[%clk 0:02:57]}  Bf5 {[%clk 0:02:58]} 4. Nf3 {[%clk 0:02:57]}  e6 {[%clk 0:02:58]} 5. Be2 {[%clk 0:02:58]}  Ne7 {[%clk 0:02:53]} 6. O-O {[%clk 0:02:57]}  Ng6 {[%clk 0:02:54]} 7. a4 {[%clk 0:02:56]}  a5 {[%clk 0:02:53]} 8. Nbd2 {[%clk 0:02:54]}  Nd7 {[%clk 0:02:52]} 9. Re1 {[%clk 0:02:54]}  f6 {[%clk 0:02:47]} 10. exf6 {[%clk 0:02:53]}  Qxf6 {[%clk 0:02:48]} 11. Nf1 {[%clk 0:02:53]}  Bd6 {[%clk 0:02:49]} 12. Ng3 {[%clk 0:02:53]}  O-O {[%clk 0:02:41]} 13. Bg5 {[%clk 0:02:15]}  Qf7 {[%clk 0:02:34]} 14. Nxf5 {[%clk 0:02:15]}  exf5 {[%clk 0:02:33]} 15. Nh4 {[%clk 0:01:59]}  Nxh4 {[%clk 0:01:53]} 16. Bxh4 {[%clk 0:01:57]}  Rae8 {[%clk 0:01:53]} 17. Bd3 {[%clk 0:01:41]}  Rxe1+ {[%clk 0:01:45]} 18. Qxe1 {[%clk 0:01:42]}  Re8 {[%clk 0:01:42]} 19. Qd1 {[%clk 0:01:40]}  h6 {[%clk 0:01:37]} 20. f3 {[%clk 0:00:58]}  Qh5 {[%clk 0:01:36]} 21. Bg3 {[%clk 0:00:54]}  Bxg3 {[%clk 0:01:36]} 22. hxg3 {[%clk 0:00:55]}  Qg5 {[%clk 0:01:36]} 23. Kh2 {[%clk 0:00:47]}  Nf6 {[%clk 0:01:28]} 24. Qc1 {[%clk 0:00:47]}  Re3 {[%clk 0:01:23]} 25. Qd2 {[%clk 0:00:40]}  Nh5 {[%clk 0:01:12]} 26. Qf2 {[%clk 0:00:39]}  f4 {[%clk 0:00:44]} 27. gxf4 {[%clk 0:00:40]}  Nxf4 {[%clk 0:00:38]} 28. Bf1 {[%clk 0:00:28]}  Re6 {[%clk 0:00:31]} 29. Re1 {[%clk 0:00:25]}  Rg6 {[%clk 0:00:29]} 30. Re5 {[%clk 0:00:23]}  Qf6 {[%clk 0:00:23]} 31. g3 {[%clk 0:00:23]}  Ne6 {[%clk 0:00:21]} 32. Bd3 {[%clk 0:00:22]}  Rg5 {[%clk 0:00:19]} 33. f4 {[%clk 0:00:21]}  Rxe5 {[%clk 0:00:09]} 34. dxe5 {[%clk 0:00:22]}  Qe7 {[%clk 0:00:09]} 35. f5 {[%clk 0:00:22]}  Ng5 {[%clk 0:00:08]} 36. Qf4 {[%clk 0:00:21]}  Qxe5 {[%clk 0:00:08]} 37. Qg4 {[%clk 0:00:14]}  Kf8 {[%clk 0:00:06]} 38. f6 {[%clk 0:00:13]}  Qxf6 {[%clk 0:00:03]} 39. Qc8+ {[%clk 0:00:13]}  Ke7 {[%clk 0:00:02]} 40. Qxb7+ {[%clk 0:00:14]}  Kd6 {[%clk 0:00:03]} 41. Qb8+ {[%clk 0:00:14]}  Kd7 {[%clk 0:00:03]} 42. Qb7+ {[%clk 0:00:14]}  Kd6 {[%clk 0:00:03]} 43. Qb8+ {[%clk 0:00:13]}  Ke6 {[%clk 0:00:04]} 44. Qe8+ {[%clk 0:00:12]}  Qe7 {[%clk 0:00:02]} 45. Qxc6+ {[%clk 0:00:12]}  Qd6 {[%clk 0:00:01]} 46. Qe8+ {[%clk 0:00:06]}  Qe7 {[%clk 0:00:02]} 47. Qg6+ {[%clk 0:00:06]}  Kd7 {[%clk 0:00:02]} 48. Bb5+ {[%clk 0:00:05]}  Kd8 {[%clk 0:00:02]} 49. Qb6+ {[%clk 0:00:05]}  Qc7 {[%clk 0:00:02]} 50. Qf2 {[%clk 0:00:04]}  Qe5 {[%clk 0:00:03]} 51. Qf8+ {[%clk 0:00:03]}  Kc7 {[%clk 0:00:03]} 52. Qc5+ {[%clk 0:00:03]}  Kd8 {[%clk 0:00:03]} 53. Qf8+ {[%clk 0:00:03]}  Kc7 {[%clk 0:00:04]} 54. Qc5+ {[%clk 0:00:03]}  Kb8 {[%clk 0:00:05]} 55. Qb6+ {[%clk 0:00:03]}  Kc8 {[%clk 0:00:05]} 56. Ba6+ {[%clk 0:00:04]}  Kd7 {[%clk 0:00:05]} 57. Bb5+ {[%clk 0:00:04]}  Ke7 {[%clk 0:00:06]} 58. Qb7+ {[%clk 0:00:04]}  Kf6 {[%clk 0:00:06]} 59. Qb6+ {[%clk 0:00:04]}  Kf5 {[%clk 0:00:06]} 60. Bd3+ {[%clk 0:00:04]}  Kg4 {[%clk 0:00:06]} 61. Qf2 {[%clk 0:00:04]}  Nf3+ {[%clk 0:00:04]} 62. Kg2 {[%clk 0:00:05]}  Ne1+ {[%clk 0:00:04]} 63. Kg1 {[%clk 0:00:05]}  Nxd3 {[%clk 0:00:05]} 64. cxd3 {[%clk 0:00:04]}  d4 {[%clk 0:00:03]} 65. Kg2 {[%clk 0:00:04]}  Qd5+ {[%clk 0:00:03]} 66. Kh2 {[%clk 0:00:04]}  g5 {[%clk 0:00:03]} 67. Qe2+ {[%clk 0:00:04]}  Kf5 {[%clk 0:00:04]} 68. g4+ {[%clk 0:00:04]}  Kf4 {[%clk 0:00:03]} 69. Kh3 {[%clk 0:00:04]}  Qf3+ {[%clk 0:00:04]} 70. Qxf3+ {[%clk 0:00:04]}  Kxf3 {[%clk 0:00:05]} 71. b4 {[%clk 0:00:04]}  axb4 {[%clk 0:00:05]} 72. a5 {[%clk 0:00:04]}  b3 {[%clk 0:00:06]} 73. a6 {[%clk 0:00:05]}  b2 {[%clk 0:00:07]} 74. a7 {[%clk 0:00:06]}  b1=Q {[%clk 0:00:07]} 75. a8=Q+ {[%clk 0:00:07]}  Ke2 {[%clk 0:00:07]} 76. Qe4+ {[%clk 0:00:07]}  Kd2 {[%clk 0:00:07]} 77. Qxd4 {[%clk 0:00:04]}  Qxd3+ {[%clk 0:00:08]} 0-1


[Site "https://www.chess.com"]

[Event "Titled Tuesday Blitz October 26 2021"]
[White "Beerdsen, Thomas"]
[Black "Moroni, Luca Jr"]
[WhiteFideId "1030108"]
[BlackFideId "865834"]
[WhiteElo "2585"]
[BlackElo "2491"]
[Result "1-0"]
[Round "06"]
[TimeControl "180+1"]
[Date "2021.10.26"]
[WhiteClock "0:00:10"]
[BlackClock "0:00:02"]

1. h3 {[%clk 0:03:00]}  g6 {[%clk 0:02:57]} 2. g4 {[%clk 0:03:01]}  Bg7 {[%clk 0:02:57]} 3. Bg2 {[%clk 0:03:01]}  d5 {[%clk 0:02:57]} 4. e3 {[%clk 0:03:01]}  c5 {[%clk 0:02:56]} 5. Ne2 {[%clk 0:03:02]}  Nc6 {[%clk 0:02:57]} 6. Nbc3 {[%clk 0:02:56]}  e6 {[%clk 0:02:47]} 7. Ng3 {[%clk 0:02:51]}  Nf6 {[%clk 0:02:43]} 8. g5 {[%clk 0:02:50]}  Nd7 {[%clk 0:02:39]} 9. h4 {[%clk 0:02:50]}  b6 {[%clk 0:02:31]} 10. f4 {[%clk 0:02:40]}  Bb7 {[%clk 0:02:28]} 11. h5 {[%clk 0:02:40]}  Qc7 {[%clk 0:02:13]} 12. h6 {[%clk 0:02:17]}  Bxc3 {[%clk 0:02:07]} 13. bxc3 {[%clk 0:02:18]}  O-O-O {[%clk 0:01:57]} 14. Qg4 {[%clk 0:02:12]}  f5 {[%clk 0:01:55]} 15. gxf6 {[%clk 0:02:11]}  Nxf6 {[%clk 0:01:54]} 16. Qxe6+ {[%clk 0:02:11]}  Nd7 {[%clk 0:01:50]} 17. O-O {[%clk 0:01:40]}  Rhe8 {[%clk 0:01:48]} 18. Qxd5 {[%clk 0:01:40]}  Nde5 {[%clk 0:01:26]} 19. Qb3 {[%clk 0:01:13]}  Na5 {[%clk 0:01:24]} 20. Qa4 {[%clk 0:01:11]}  Bxg2 {[%clk 0:01:08]} 21. Kxg2 {[%clk 0:01:12]}  Ng4 {[%clk 0:01:04]} 22. e4 {[%clk 0:00:46]}  a6 {[%clk 0:00:46]} 23. d3 {[%clk 0:00:39]}  b5 {[%clk 0:00:30]} 24. Qa3 {[%clk 0:00:39]}  Kb7 {[%clk 0:00:30]} 25. Rb1 {[%clk 0:00:34]}  Ka7 {[%clk 0:00:29]} 26. c4 {[%clk 0:00:23]}  bxc4 {[%clk 0:00:18]} 27. Bd2 {[%clk 0:00:22]}  Nb7 {[%clk 0:00:18]} 28. Rb2 {[%clk 0:00:16]}  Rd6 {[%clk 0:00:04]} 29. Rfb1 {[%clk 0:00:15]}  Rb8 {[%clk 0:00:04]} 30. e5 {[%clk 0:00:13]}  Rc6 {[%clk 0:00:02]} 31. Ne4 {[%clk 0:00:14]}  cxd3 {[%clk 0:00:02]} 32. cxd3 {[%clk 0:00:14]}  c4 {[%clk 0:00:02]} 33. Kf3 {[%clk 0:00:10]} 1-0


[Site "https://www.chess.com"]

[Event "Titled Tuesday Blitz October 26 2021"]
[White "Bernadskiy, Vitaliy"]
[Black "Tregubov, Pavel V."]
[WhiteFideId "14100371"]
[BlackFideId "4115341"]
[WhiteElo "2510"]
[BlackElo "2423"]
[Result "0-1"]
[Round "06"]
[TimeControl "180+1"]
[Date "2021.10.26"]
[WhiteClock "0:00:50"]
[BlackClock "0:01:12"]

1. d4 {[%clk 0:03:00]}  Nf6 {[%clk 0:02:59]} 2. g3 {[%clk 0:02:56]}  d5 {[%clk 0:02:55]} 3. Bg2 {[%clk 0:02:55]}  c5 {[%clk 0:02:56]} 4. e3 {[%clk 0:02:56]}  Nc6 {[%clk 0:02:56]} 5. Ne2 {[%clk 0:02:56]}  Bf5 {[%clk 0:02:53]} 6. O-O {[%clk 0:02:51]}  e6 {[%clk 0:02:53]} 7. Nbc3 {[%clk 0:02:51]}  Be7 {[%clk 0:02:49]} 8. a3 {[%clk 0:02:50]}  cxd4 {[%clk 0:02:41]} 9. exd4 {[%clk 0:02:51]}  O-O {[%clk 0:02:41]} 10. h3 {[%clk 0:02:50]}  h6 {[%clk 0:02:40]} 11. Nf4 {[%clk 0:02:50]}  Rc8 {[%clk 0:02:38]} 12. Nce2 {[%clk 0:02:49]}  b5 {[%clk 0:02:35]} 13. c3 {[%clk 0:02:47]}  a5 {[%clk 0:02:35]} 14. b4 {[%clk 0:02:46]}  Nb8 {[%clk 0:02:26]} 15. Nd3 {[%clk 0:02:44]}  Bxd3 {[%clk 0:02:23]} 16. Qxd3 {[%clk 0:02:43]}  Qb6 {[%clk 0:02:23]} 17. g4 {[%clk 0:02:35]}  Nbd7 {[%clk 0:02:22]} 18. f4 {[%clk 0:02:34]}  Qc6 {[%clk 0:02:17]} 19. f5 {[%clk 0:02:04]}  e5 {[%clk 0:02:10]} 20. Qg3 {[%clk 0:01:57]}  Bd6 {[%clk 0:02:06]} 21. Qh4 {[%clk 0:01:46]}  Qc4 {[%clk 0:01:59]} 22. Qf2 {[%clk 0:01:22]}  Ne4 {[%clk 0:01:50]} 23. Bxe4 {[%clk 0:01:21]}  dxe4 {[%clk 0:01:51]} 24. Be3 {[%clk 0:01:16]}  Nf6 {[%clk 0:01:48]} 25. Rad1 {[%clk 0:01:07]}  axb4 {[%clk 0:01:43]} 26. axb4 {[%clk 0:01:05]}  Nd5 {[%clk 0:01:42]} 27. f6 {[%clk 0:01:00]}  Nxf6 {[%clk 0:01:25]} 28. Bxh6 {[%clk 0:01:00]}  gxh6 {[%clk 0:01:20]} 29. Qxf6 {[%clk 0:00:59]}  Qxe2 {[%clk 0:01:20]} 30. Qxd6 {[%clk 0:00:54]}  Rxc3 {[%clk 0:01:20]} 31. Qxe5 {[%clk 0:00:50]}  Rxh3 {[%clk 0:01:12]} 0-1


[Site "https://www.chess.com"]